fUSD/lending_fUSD_20241209
["ID","MTS","AMOUNT","RATE_DAILY","PERIOD"]
[344668177,1733715050450,-656.62,9.996e-05,2]
[344668178,1733715050461,-2261.36,9.996e-05,2]
[344668179,1733715050470,-656.62,9.996e-05,2]
[344668180,1733715050479,-2261.36,9.996e-05,2]
[344668181,1733715050489,-656.62,9.996e-05,2]
[344668182,1733715050499,-2261.36,9.996e-05,2]
[344668183,1733715050508,-656.62,9.996e-05,2]
[344668184,1733715050518,-2261.36,9.996e-05,2]
[344668185,1733715050527,-2261.36,9.996e-05,2]
[344668186,1733715050536,-2261.36,9.996e-05,2]
[344668187,1733715050546,-656.62,9.996e-05,2]
[344668188,1733715050556,-656.62,9.996e-05,2]
[344668189,1733715050565,-656.62,9.996e-05,2]
[344668190,1733715050575,-809.71,9.996e-05,2]
[344668191,1733715050584,-656.62,9.996e-05,2]
[344668192,1733715050594,-656.62,9.996e-05,2]
[344668193,1733715050604,-656.62,9.996e-05,2]
[344668194,1733715050613,-656.62,9.996e-05,2]
[344668195,1733715050623,-656.62,9.996e-05,2]
[344668196,1733715050632,-656.62,9.996e-05,2]
[344668197,1733715050642,-656.62,9.996e-05,2]
[344668198,1733715050650,-656.62,9.996e-05,2]
[344668199,1733715050661,-656.62,9.996e-05,2]
[344668200,1733715050671,-656.69268646,9.996e-05,2]
[344668201,1733715050680,-7245.55,9.996e-05,2]
[344668202,1733715050690,-7245.55,9.996e-05,2]
[344668203,1733715050700,-7245.55,9.996e-05,2]
[344668204,1733715050711,-7245.55,9.996e-05,2]
[344668205,1733715050720,-7245.55,9.996e-05,2]
[344668206,1733715050730,-7245.55,9.996e-05,2]
[344668207,1733715050740,-7245.55,9.996e-05,2]
[344668208,1733715050749,-7245.55,9.996e-05,2]
[344668209,1733715050759,-2261.36,9.996e-05,2]
[344668210,1733715050768,-2261.36,9.996e-05,2]
[344668211,1733715050778,-2261.36,9.996e-05,2]
[344668212,1733715050788,-2261.36,9.996e-05,2]
[344668213,1733715050798,-500.0,9.996e-05,2]
[344668214,1733715050807,-2261.36,9.996e-05,2]
[344668215,1733715050818,-500.0,9.996e-05,2]
[344668216,1733715050828,-2261.36,9.996e-05,2]
[344668217,1733715050838,-2261.36,9.996e-05,2]
[344668218,1733715050847,-500.0,9.996e-05,2]
[344668219,1733715050856,-2261.36,9.996e-05,2]
[344668220,1733715050866,-500.0,9.996e-05,2]
[344668221,1733715050876,-2261.53203844,9.996e-05,2]
[344668222,1733715050886,-500.0,9.996e-05,2]
[344668223,1733715050896,-500.0,9.996e-05,2]
[344668224,1733715050906,-500.0,9.996e-05,2]
[344668225,1733715050916,-500.0,9.996e-05,2]
[344668226,1733715050926,-500.0,9.996e-05,2]
[344668227,1733715050935,-624.24834053,9.996e-05,2]
[344668228,1733715050946,-500.0,9.996e-05,2]
[344668229,1733715050956,-378.17652278,9.996e-05,2]
[344668230,1733715050966,-1711.0,9.996e-05,2]
[344668231,1733715050975,-1711.0,9.996e-05,2]
[344668232,1733715050985,-1711.0,9.996e-05,2]
[344668233,1733715050994,-1711.0,9.996e-05,2]
[344668234,1733715051004,-1711.0,9.996e-05,2]
[344668235,1733715051014,-1711.0,9.996e-05,2]
[344668236,1733715051024,-1598.46,9.996e-05,2]
[344668237,1733715051036,-585.7,9.996e-05,2]
[344668238,1733715051046,-1711.0,9.996e-05,2]
[344668239,1733715051056,-585.7,9.996e-05,2]
[344668240,1733715051067,-500.0,9.996e-05,2]
[344668241,1733715051077,-585.7,9.996e-05,2]
[344668242,1733715051089,-585.7,9.996e-05,2]
[344668243,1733715051098,-1514.75,9.996e-05,2]
[344668244,1733715051107,-500.0,9.996e-05,2]
[344668245,1733715051117,-15621.98,9.996e-05,2]
[344668246,1733715051126,-15621.98,9.996e-05,2]
[344668247,1733715051136,-15621.98,9.996e-05,2]
[344668248,1733715051146,-15621.98,9.996e-05,2]
[344668249,1733715051155,-1711.0,9.996e-05,2]
[344668250,1733715051165,-585.7,9.996e-05,2]
[344668251,1733715051175,-500.0,9.996e-05,2]
[344668252,1733715051185,-3829.62,9.996e-05,2]
[344668253,1733715051195,-15621.98,9.996e-05,2]
[344668254,1733715051205,-585.7,9.996e-05,2]
[344668255,1733715051216,-1711.0,9.996e-05,2]
[344668256,1733715051229,-15621.98,9.996e-05,2]
[344668257,1733715051241,-585.7,9.996e-05,2]
[344668258,1733715051251,-1711.0,9.996e-05,2]
[344668259,1733715051261,-15621.98,9.996e-05,2]
[344668260,1733715051271,-585.7,9.996e-05,2]
[344668261,1733715051280,-1711.0,9.996e-05,2]
[344668262,1733715051290,-15621.98,9.996e-05,2]
[344668263,1733715051302,-585.7,9.996e-05,2]
[344668264,1733715051312,-1711.0,9.996e-05,2]
[344668265,1733715051323,-585.7,9.996e-05,2]
[344668266,1733715051332,-1711.0,9.996e-05,2]
[344668267,1733715051344,-585.7,9.996e-05,2]
[344668268,1733715051353,-1711.0,9.996e-05,2]
[344668269,1733715051364,-585.7,9.996e-05,2]
[344668270,1733715051373,-1711.0,9.996e-05,2]
[344668271,1733715051383,-1711.0,9.996e-05,2]
[344668272,1733715051392,-585.7,9.996e-05,2]
[344668273,1733715051402,-1711.0,9.996e-05,2]
[344668274,1733715051411,-585.7,9.996e-05,2]
[344668275,1733715051421,-1711.0,9.996e-05,2]
[344668276,1733715051430,-585.7,9.996e-05,2]
[344668277,1733715051439,-1711.06205031,9.996e-05,2]
[344668278,1733715051448,-585.7,9.996e-05,2]
[344668279,1733715051458,-585.7,9.996e-05,2]
[344668280,1733715051467,-585.7,9.996e-05,2]
[344668281,1733715051477,-585.83457102,9.996e-05,2]
[344668282,1733715051487,-565.88741825,9.996e-05,2]
[344668283,1733715051496,-612.35,9.996e-05,2]
[344668284,1733715051506,-500.0,9.996e-05,2]
[344668285,1733715051516,-177.1161774,9.996e-05,2]
[344668286,1733715051526,-9897.75,9.996e-05,2]
[344668287,1733715051536,-9897.75,9.996e-05,2]
[344668288,1733715051545,-9897.75,9.996e-05,2]
[344668289,1733715051554,-738.17,9.996e-05,2]
[344668290,1733715051564,-500.0,9.996e-05,2]
[344668291,1733715051574,-9897.75,9.996e-05,2]
[344668292,1733715051584,-738.17,9.996e-05,2]
[344668293,1733715051594,-500.0,9.996e-05,2]
[344668294,1733715051603,-9897.75,9.996e-05,2]
[344668295,1733715051612,-198.63228648,9.996e-05,2]
[344668296,1733715051622,-738.17,9.996e-05,2]
[344668297,1733715051631,-738.17,9.996e-05,2]
[344668298,1733715051841,-9897.75,9.996e-05,2]
[344668299,1733715051851,-9897.75,9.996e-05,2]
[344668300,1733715051861,-738.17,9.996e-05,2]
[344668301,1733715051871,-500.0,9.996e-05,2]
[344668302,1733715051880,-9897.75,9.996e-05,2]
[344668303,1733715051890,-738.17,9.996e-05,2]
[344668304,1733715051899,-9897.75,9.996e-05,2]
[344668305,1733715051909,-738.17,9.996e-05,2]
[344668306,1733715051918,-9897.75,9.996e-05,2]
[344668307,1733715051927,-697.67,9.996e-05,2]
[344668308,1733715051937,-738.17,9.996e-05,2]
[344668309,1733715051946,-9897.75,9.996e-05,2]
[344668310,1733715051955,-697.67,9.996e-05,2]
[344668311,1733715051965,-738.17,9.996e-05,2]
[344668312,1733715051975,-697.67,9.996e-05,2]
[344668313,1733715051986,-683.91,9.996e-05,2]
[344668314,1733715051995,-738.17,9.996e-05,2]
[344668315,1733715052005,-9897.75,9.996e-05,2]
[344668316,1733715052015,-738.17,9.996e-05,2]
[344668317,1733715052025,-697.67,9.996e-05,2]
[344668318,1733715052034,-9897.75,9.996e-05,2]
[344668319,1733715052043,-738.17,9.996e-05,2]
[344668320,1733715052053,-697.67,9.996e-05,2]
[344668321,1733715052063,-9897.75,9.996e-05,2]
[344668322,1733715052073,-738.17,9.996e-05,2]
[344668323,1733715052083,-9897.75,9.996e-05,2]
[344668324,1733715052092,-738.17,9.996e-05,2]
[344668325,1733715052101,-9897.75,9.996e-05,2]
[344668326,1733715052110,-738.17,9.996e-05,2]
[344668327,1733715052120,-9897.75,9.996e-05,2]
[344668328,1733715052129,-738.17,9.996e-05,2]
[344668329,1733715052140,-9897.75,9.996e-05,2]
[344668330,1733715052150,-738.17,9.996e-05,2]
[344668331,1733715052160,-697.67,9.996e-05,2]
[344668332,1733715052169,-9897.88919173,9.996e-05,2]
[344668333,1733715052179,-738.17,9.996e-05,2]
[344668334,1733715052188,-738.26909783,9.996e-05,2]
[344668335,1733715052198,-697.67,9.996e-05,2]
[344668336,1733715052207,-697.67,9.996e-05,2]
[344668337,1733715052218,-599.4,9.996e-05,2]
[344668338,1733715052230,-500.0,9.996e-05,2]
[344668339,1733715052239,-599.4,9.996e-05,2]
[344668340,1733715052248,-599.4,9.996e-05,2]
[344668341,1733715052258,-500.0,9.996e-05,2]
[344668342,1733715052269,-567.08,9.996e-05,2]
[344668343,1733715052278,-567.08,9.996e-05,2]
[344668344,1733715052287,-567.08,9.996e-05,2]
[344668345,1733715052300,-567.08,9.996e-05,2]
[344668346,1733715052311,-567.08,9.996e-05,2]
[344668347,1733715052321,-567.08,9.996e-05,2]
[344668348,1733715052330,-567.08,9.996e-05,2]
[344668349,1733715052340,-567.08,9.996e-05,2]
[344668350,1733715052350,-567.08,9.996e-05,2]
[344668351,1733715052361,-567.08,9.996e-05,2]
[344668352,1733715052370,-567.08,9.996e-05,2]
[344668353,1733715052380,-567.08,9.996e-05,2]
[344668354,1733715052389,-599.4,9.996e-05,2]
[344668355,1733715052399,-567.08,9.996e-05,2]
[344668356,1733715052408,-599.4,9.996e-05,2]
[344668357,1733715052417,-567.08,9.996e-05,2]
[344668358,1733715052427,-567.08,9.996e-05,2]
[344668359,1733715052436,-567.08,9.996e-05,2]
[344668360,1733715052446,-500.0,9.996e-05,2]
[344668361,1733715052456,-500.0,9.996e-05,2]
[344668362,1733715052466,-1110.41,9.996e-05,2]
[344668363,1733715052476,-1110.41,9.996e-05,2]
[344668364,1733715052485,-1110.41,9.996e-05,2]
[344668365,1733715052494,-503.23602466,9.996e-05,2]
[344668366,1733715052504,-1110.41,9.996e-05,2]
[344668367,1733715052514,-567.08,9.996e-05,2]
[344668368,1733715052525,-1110.41,9.996e-05,2]
[344668369,1733715052535,-1110.41,9.996e-05,2]
[344668370,1733715052544,-567.08,9.996e-05,2]
[344668371,1733715052554,-1110.41,9.996e-05,2]
[344668372,1733715052563,-567.21420175,9.996e-05,2]
[344668373,1733715052574,-967.24,9.996e-05,2]
[344668374,1733715052584,-1213.4,9.996e-05,2]
[344668375,1733715052594,-1213.4,9.996e-05,2]
[344668376,1733715052604,-608.25,9.996e-05,2]
[344668377,1733715052613,-1110.41,9.996e-05,2]
[344668378,1733715052623,-608.25,9.996e-05,2]
[344668379,1733715052632,-967.24,9.996e-05,2]
[344668380,1733715052642,-1213.4,9.996e-05,2]
[344668381,1733715052651,-608.25,9.996e-05,2]
[344668382,1733715052661,-608.25,9.996e-05,2]
[344668383,1733715052671,-1213.4,9.996e-05,2]
[344668384,1733715052681,-1213.4,9.996e-05,2]
[344668385,1733715052690,-1213.4,9.996e-05,2]
[344668386,1733715052700,-1213.4,9.996e-05,2]
[344668387,1733715052710,-1110.41,9.996e-05,2]
[344668388,1733715052719,-1213.4,9.996e-05,2]
[344668389,1733715052728,-1213.4,9.996e-05,2]
[344668390,1733715052739,-1110.41,9.996e-05,2]
[344668391,1733715052749,-500.0,9.996e-05,2]
[344668392,1733715052758,-967.24,9.996e-05,2]
[344668393,1733715052767,-1213.4,9.996e-05,2]
[344668394,1733715052777,-7663.45,9.996e-05,2]
[344668395,1733715052787,-967.24,9.996e-05,2]
[344668396,1733715052797,-608.25,9.996e-05,2]
[344668397,1733715052806,-967.24,9.996e-05,2]
[344668398,1733715052816,-967.24,9.996e-05,2]
[344668399,1733715052827,-967.24,9.996e-05,2]
[344668400,1733715052837,-500.0,9.996e-05,2]
[344668401,1733715052846,-1110.41,9.996e-05,2]
[344668402,1733715052856,-967.24,9.996e-05,2]
[344668403,1733715052866,-1213.4,9.996e-05,2]
[344668404,1733715052876,-967.24,9.996e-05,2]
[344668405,1733715052886,-1213.4,9.996e-05,2]
[344668406,1733715052895,-967.24,9.996e-05,2]
[344668407,1733715052905,-4296.19,9.996e-05,2]
[344668408,1733715052915,-967.24,9.996e-05,2]
[344668409,1733715052924,-967.24,9.996e-05,2]
[344668410,1733715052933,-1213.4,9.996e-05,2]
[344668411,1733715052943,-7026.15,9.996e-05,2]
[344668412,1733715052952,-1213.4,9.996e-05,2]
[344668413,1733715052962,-7026.15,9.996e-05,2]
[344668414,1733715052972,-1213.4,9.996e-05,2]
[344668415,1733715052982,-7026.15,9.996e-05,2]
[344668416,1733715052991,-1110.41,9.996e-05,2]
[344668417,1733715053001,-1213.4,9.996e-05,2]
[344668418,1733715053011,-6076.44025895,9.996e-05,2]
[344668419,1733715053051,-562.6220773,9.996e-05,2]
[344668420,1733715053100,-1086.9652411,9.995e-05,2]
[344668421,1733715053113,-470.3147589,9.995e-05,2]
[344668422,1733715053123,-387.08766375,9.996e-05,2]
[344668423,1733715053136,-771.80757735,9.996e-05,2]
[344668424,1733715053147,-338.60242265,9.996e-05,2]
[344668425,1733715053158,-293.67057737,9.996e-05,2]
[344668426,1733715053169,-919.72942263,9.996e-05,2]
[344668427,1733715053179,-1711.14235733,9.996e-05,2]
[344668428,1733715053191,-710.69999997,9.996e-05,2]
[344668429,1733715053861,-516.31190535,9.947e-05,2]
[344668430,1733715053870,-156.21474,9.949e-05,2]
[344668431,1733715053879,-1557.28,9.995e-05,2]
[344668432,1733715053888,-909.63856244,9.995e-05,2]
[344668435,1733715337360,-1079.18,8.219e-05,2]
[344668436,1733715337384,-250.0,9.241e-05,2]
[344668437,1733715337408,-170.82,9.28e-05,2]
[344668438,1733715363014,-470.0,9.28e-05,2]
[344668439,1733715570249,-5000.68011617,0.0001255,14]
[344668440,1733715570506,-362.46,0.00016658,30]
[344668441,1733715592571,-300.0,0.00018,14]
[344668443,1733715642607,-859.18,9.28e-05,2]
[344668444,1733715642630,-250.0,9.291e-05,2]
[344668445,1733715642651,-885.85,9.36e-05,2]
[344668446,1733715642672,-159.18,9.646e-05,2]
[344668447,1733715642691,-54482.64988383,9.647e-05,8]
[344668886,1733716232393,-150.0,8.814e-05,2]
[344668887,1733716232402,-544.708,8.814e-05,2]
[344668888,1733716232414,-8257.882,8.814e-05,2]
[344668889,1733716232424,-250.0,8.858e-05,2]
[344668890,1733716232434,-500.0,8.911e-05,2]
[344668891,1733716232444,-804.32,8.922e-05,2]
[344668892,1733716232453,-250.0,8.926e-05,2]
[344668893,1733716232462,-200.0,8.931e-05,2]
[344668894,1733716232471,-492.88,8.962e-05,2]
[344668895,1733716232480,-1000.0,8.989e-05,2]
[344668896,1733716232489,-8052.918,9.089e-05,2]
[344668897,1733716232500,-6234.47716797,9.089e-05,2]
[344668898,1733716232699,-9612.60483203,9.089e-05,2]
[344668899,1733716232708,-166.5,9.25e-05,2]
[344668900,1733716232718,-500.0,9.3e-05,3]
[344668901,1733716232728,-280.0,9.3e-05,3]
[344668902,1733716232737,-260.0,9.3e-05,3]
[344668903,1733716232746,-260.0,9.3e-05,3]
[344668904,1733716232755,-410.884,9.5e-05,2]
[344668905,1733716232770,-166.5,9.631e-05,2]
[344668906,1733716232786,-44431.90011617,9.647e-05,8]
[344668907,1733716232795,-6769.1593,9.694e-05,2]
[344668908,1733716232808,-2028.4966,9.694e-05,2]
[344668909,1733716232817,-167599.11556389,9.749e-05,2]
[344668910,1733716232827,-150.0,9.753e-05,2]
[344668911,1733716232837,-200.0,9.775e-05,2]
[344668913,1733716232847,-150.0,9.791e-05,2]
[344668915,1733716232859,-1829.52725787,9.794e-05,2]
[344668917,1733716232868,-1713.0,9.8e-05,2]
[344668919,1733716232878,-3101.5357,9.847e-05,2]
[344668921,1733716232888,-344.41239926,9.85e-05,2]
[344668923,1733716232898,-5000.5649236,9.9e-05,2]
[344668925,1733716232908,-4007.0,9.9e-05,2]
[344668927,1733716232917,-687.55,9.9e-05,2]
[344668929,1733716232926,-500.0,9.944e-05,2]
[344668931,1733716232935,-500.0,9.944e-05,2]
[344668933,1733716232945,-500.0,9.944e-05,2]
[344668935,1733716232954,-500.0,9.944e-05,2]
[344668937,1733716232964,-500.0,9.944e-05,2]
[344668939,1733716232974,-29233.24,9.944e-05,2]
[344668941,1733716232983,-571.0,9.944e-05,2]
[344668943,1733716232992,-500.0,9.944e-05,2]
[344668945,1733716233001,-1560.01,9.944e-05,2]
[344668947,1733716233011,-500.0,9.944e-05,2]
[344668949,1733716233020,-396.80264861,9.944e-05,2]
[344668951,1733716233029,-500.0,9.944e-05,2]
[344668953,1733716233038,-547.44,9.944e-05,2]
[344668955,1733716233048,-500.0,9.944e-05,2]
[344668957,1733716233058,-500.0,9.944e-05,2]
[344668959,1733716233068,-500.0,9.944e-05,2]
[344668961,1733716233078,-500.0,9.944e-05,2]
[344668963,1733716233087,-500.0,9.944e-05,2]
[344668965,1733716233097,-3306.7,9.944e-05,2]
[344668967,1733716233106,-1018.5,9.944e-05,2]
[344668969,1733716233116,-653.67,9.944e-05,2]
[344668971,1733716233126,-500.0,9.944e-05,2]
[344668973,1733716233135,-578.52,9.944e-05,2]
[344668975,1733716233145,-500.0,9.944e-05,2]
[344668977,1733716233154,-4918.66,9.944e-05,2]
[344668979,1733716233164,-534.86,9.945e-05,2]
[344668980,1733716233174,-1383.49,9.945e-05,2]
[344668982,1733716233183,-500.0,9.945e-05,2]
[344668985,1733716233193,-500.0,9.945e-05,2]
[344668988,1733716233203,-588.09,9.945e-05,2]
[344668990,1733716233214,-500.0,9.945e-05,2]
[344668992,1733716233224,-500.0,9.945e-05,2]
[344668994,1733716233235,-500.0,9.945e-05,2]
[344668996,1733716233245,-500.0,9.945e-05,2]
[344668998,1733716233255,-500.0,9.945e-05,2]
[344669000,1733716233265,-500.0,9.945e-05,2]
[344669002,1733716233276,-500.0,9.945e-05,2]
[344669004,1733716233285,-1343.05,9.945e-05,2]
[344669006,1733716233295,-653.93,9.945e-05,2]
[344669008,1733716233307,-520.28696319,9.945e-05,2]
[344669010,1733716233317,-1485.22,9.945e-05,2]
[344669012,1733716233326,-573.19,9.945e-05,2]
[344669014,1733716233336,-1467.67,9.945e-05,2]
[344669016,1733716233345,-500.0,9.945e-05,2]
[344669018,1733716233355,-521.58,9.945e-05,2]
[344669020,1733716233365,-500.0,9.945e-05,2]
[344669022,1733716233375,-500.0,9.945e-05,2]
[344669024,1733716233385,-500.0,9.945e-05,2]
[344669026,1733716233395,-1135.27,9.945e-05,2]
[344669027,1733716233405,-500.0,9.945e-05,2]
[344669028,1733716233415,-935.77,9.945e-05,2]
[344669029,1733716233424,-500.0,9.945e-05,2]
[344669030,1733716233434,-500.0,9.945e-05,2]
[344669031,1733716233444,-500.0,9.945e-05,2]
[344669032,1733716233454,-971.61,9.945e-05,2]
[344669033,1733716233464,-500.0,9.945e-05,2]
[344669034,1733716233474,-505.96578969,9.945e-05,2]
[344669035,1733716233486,-6547.63,9.945e-05,2]
[344669036,1733716233496,-500.0,9.945e-05,2]
[344669037,1733716233506,-585.38,9.945e-05,2]
[344669038,1733716233516,-500.0,9.945e-05,2]
[344669040,1733716233526,-500.0,9.945e-05,2]
[344669042,1733716233536,-7850.16,9.945e-05,2]
[344669044,1733716233546,-501.25154003,9.945e-05,2]
[344669046,1733716233556,-223.52254,9.945e-05,2]
[344669048,1733716233567,-1756.115019,9.945e-05,2]
[344669050,1733716233577,-739.26,9.945e-05,2]
[344669052,1733716233587,-500.0,9.945e-05,2]
[344669054,1733716233597,-500.0,9.945e-05,2]
[344669056,1733716233607,-711.26,9.945e-05,2]
[344669057,1733716233619,-504.22772606,9.945e-05,2]
[344669058,1733716233629,-500.0,9.945e-05,2]
[344669059,1733716233639,-500.0,9.945e-05,2]
[344669061,1733716233649,-14095.65,9.945e-05,2]
[344669063,1733716233659,-3277.21,9.945e-05,2]
[344669065,1733716233670,-500.0,9.945e-05,2]
[344669067,1733716233681,-500.5869259,9.945e-05,2]
[344669069,1733716233691,-503.74768197,9.945e-05,2]
[344669071,1733716233704,-528.22704002,9.945e-05,2]
[344669073,1733716233714,-500.0,9.945e-05,2]
[344669075,1733716233723,-4899.15,9.945e-05,2]
[344669077,1733716233733,-721.88,9.945e-05,2]
[344669079,1733716233742,-1102.94,9.945e-05,2]
[344669081,1733716233752,-510.03293072,9.945e-05,2]
[344669083,1733716233762,-500.0,9.945e-05,2]
[344669085,1733716233771,-2906.91,9.945e-05,2]
[344669086,1733716233781,-530.1,9.945e-05,2]
[344669088,1733716233793,-174.136838,9.945e-05,2]
[344669090,1733716233805,-500.0,9.945e-05,2]
[344669092,1733716233815,-1341.41,9.945e-05,2]
[344669094,1733716233825,-2389.37,9.945e-05,2]
[344669096,1733716233835,-927.72,9.945e-05,2]
[344669098,1733716233845,-519.11,9.945e-05,2]
[344669101,1733716233854,-500.0,9.945e-05,2]
[344669103,1733716233864,-547.34,9.945e-05,2]
[344669105,1733716233874,-8120.02,9.945e-05,2]
[344669106,1733716233883,-500.0,9.945e-05,2]
[344669108,1733716233893,-1589.85,9.945e-05,2]
[344669110,1733716233903,-500.21657257,9.945e-05,2]
[344669113,1733716233912,-500.0,9.945e-05,2]
[344669115,1733716233922,-5132.38,9.945e-05,2]
[344669117,1733716233932,-691.76,9.945e-05,2]
[344669118,1733716233941,-500.0,9.945e-05,2]
[344669120,1733716233951,-500.0,9.945e-05,2]
[344669122,1733716233961,-1561.43,9.945e-05,2]
[344669124,1733716233971,-1461.39,9.945e-05,2]
[344669126,1733716233982,-500.0,9.945e-05,2]
[344669128,1733716233992,-528.66,9.945e-05,2]
[344669130,1733716234002,-4867.1,9.945e-05,2]
[344669133,1733716234012,-1020.04,9.945e-05,2]
[344669134,1733716234022,-500.0,9.945e-05,2]
[344669137,1733716234034,-1135.65,9.945e-05,2]
[344669139,1733716234044,-500.0,9.945e-05,2]
[344669141,1733716234056,-524.38,9.945e-05,2]
[344669143,1733716234066,-4670.99,9.945e-05,2]
[344669145,1733716234076,-500.0,9.945e-05,2]
[344669147,1733716234086,-500.0,9.945e-05,2]
[344669149,1733716234096,-12472.62649901,9.945e-05,2]
[344669194,1733716235201,-13669.93350099,9.945e-05,2]
[344669195,1733716235211,-1291.91,9.945e-05,2]
[344669196,1733716235222,-1313.09,9.945e-05,2]
[344669197,1733716235232,-314.14872665,9.945e-05,2]
[344669198,1733716235241,-500.0,9.945e-05,2]
[344669199,1733716235251,-500.0,9.945e-05,2]
[344669200,1733716235260,-1812.16,9.945e-05,2]
[344669201,1733716235270,-797.67,9.945e-05,2]
[344669202,1733716235279,-3085.71,9.945e-05,2]
[344669203,1733716235288,-500.0,9.945e-05,2]
[344669204,1733716235297,-500.0,9.945e-05,2]
[344669205,1733716235309,-500.0,9.945e-05,2]
[344669206,1733716235318,-500.0,9.945e-05,2]
[344669207,1733716235328,-769.61,9.945e-05,2]
[344669208,1733716235338,-521.65,9.945e-05,2]
[344669209,1733716235348,-500.0,9.945e-05,2]
[344669210,1733716235358,-500.0,9.945e-05,2]
[344669211,1733716235367,-10132.77,9.945e-05,2]
[344669212,1733716235378,-500.0,9.945e-05,2]
[344669213,1733716235387,-500.0,9.945e-05,2]
[344669214,1733716235399,-1778.93,9.945e-05,2]
[344669215,1733716235408,-1003.61,9.945e-05,2]
[344669216,1733716235418,-500.0,9.945e-05,2]
[344669217,1733716235428,-500.0,9.945e-05,2]
[344669218,1733716235437,-500.0,9.945e-05,2]
[344669219,1733716235448,-571.42,9.945e-05,2]
[344669220,1733716235457,-500.0,9.945e-05,2]
[344669221,1733716235468,-500.0,9.945e-05,2]
[344669222,1733716235477,-500.0,9.945e-05,2]
[344669223,1733716235486,-1681.82,9.945e-05,2]
[344669224,1733716235496,-517.32,9.945e-05,2]
[344669225,1733716235506,-500.0,9.945e-05,2]
[344669226,1733716235517,-1005.21,9.945e-05,2]
[344669227,1733716235527,-12687.57792371,9.945e-05,2]
[344669228,1733716235719,-269.26987704,9.945e-05,2]
[344669229,1733716235730,-949.94196682,9.945e-05,2]
[344669230,1733716235741,-550.05803318,9.945e-05,2]
[344669231,1733716235835,-5144.89644038,9.945e-05,2]
[344669232,1733716235846,-3664.28521208,9.945e-05,2]
[344669233,1733716235857,-3325.94692307,9.945e-05,2]
[344669241,1733716238916,-4646.96,9.944e-05,2]
[344669242,1733716238927,-2641.26362372,9.945e-05,2]
[344669243,1733716238937,-590.93813707,9.945e-05,2]
[344669244,1733716238949,-28642.30186293,9.945e-05,2]
[344669245,1733716238959,-571.0,9.945e-05,2]
[344669246,1733716238969,-571.0,9.945e-05,2]
[344669247,1733716238979,-5470.13,9.945e-05,2]
[344669248,1733716238989,-500.0,9.945e-05,2]
[344669249,1733716238998,-581.5,9.945e-05,2]
[344669250,1733716239008,-500.0,9.945e-05,2]
[344669251,1733716239018,-500.0,9.945e-05,2]
[344669252,1733716239028,-1560.01,9.945e-05,2]
[344669253,1733716239037,-1560.01,9.945e-05,2]
[344669254,1733716239048,-889.88,9.945e-05,2]
[344669255,1733716239062,-500.0,9.945e-05,2]
[344669256,1733716239072,-500.0,9.945e-05,2]
[344669257,1733716239082,-500.0,9.945e-05,2]
[344669258,1733716239092,-500.0,9.945e-05,2]
[344669259,1733716239102,-562.75,9.945e-05,2]
[344669260,1733716239116,-150.291524,9.945e-05,2]
[344669261,1733716239126,-973.55,9.945e-05,2]
[344669262,1733716239136,-500.0,9.945e-05,2]
[344669263,1733716239146,-500.0,9.945e-05,2]
[344669264,1733716239156,-542.82,9.945e-05,2]
[344669265,1733716239165,-500.0,9.945e-05,2]
[344669266,1733716239175,-500.0,9.945e-05,2]
[344669267,1733716239186,-1258.8,9.945e-05,2]
[344669268,1733716239196,-500.0,9.945e-05,2]
[344669269,1733716239206,-500.0,9.945e-05,2]
[344669270,1733716239217,-7723.15,9.945e-05,2]
[344669271,1733716239227,-547.44,9.945e-05,2]
[344669272,1733716239237,-547.44,9.945e-05,2]
[344669273,1733716239248,-4214.56,9.945e-05,2]
[344669274,1733716239258,-1229.03,9.945e-05,2]
[344669275,1733716239268,-1395.04,9.945e-05,2]
[344669276,1733716239279,-500.0,9.945e-05,2]
[344669277,1733716239289,-500.0,9.945e-05,2]
[344669278,1733716239299,-11026.88,9.945e-05,2]
[344669279,1733716239312,-606.96126018,9.945e-05,2]
[344669280,1733716239321,-807.91,9.945e-05,2]